bitfinex/quotes_SOLUSD_20250630
["timestamp","ask_amount","ask_price","bid_price","bid_amount"]
[1751296918750,34.31520263,151.61,151.6,3.9593261]
[1751296918928,29.46554844,151.61,151.6,3.9593261]
[1751296920648,12.97587098,151.61,151.6,3.9593261]
[1751296922854,12.97587098,151.61,151.53,1.7502]
[1751296922855,29.46554844,151.61,151.53,1.7502]
[1751296923069,0.28432314,151.58,151.53,0.2]
[1751296923256,9.19596875,151.58,151.53,9.11164561]
[1751296923563,0.28432314,151.58,151.55,8.91164561]
[1751296923735,0.28432314,151.58,151.54,8.91164561]
[1751296924237,8.91164561,151.57,151.53,9.11164561]
[1751296924556,9.19596875,151.58,151.53,9.11164561]
[1751296925057,23.09164082,151.57,151.53,9.11164561]
[1751296925751,0.28432314,151.56,151.53,0.2]
[1751296926977,59.96328643,151.57,151.54,8.91164561]
[1751296926978,6.59848234,151.55,151.54,8.91164561]
[1751296927458,10.98025772,151.59,151.54,8.91164561]
[1751296927459,6.5971764,151.58,151.54,8.91164561]
[1751296927632,6.5971764,151.58,151.57,8.91164561]
[1751296928258,23.09011742,151.58,151.53,0.2]
[1751296928448,23.09011742,151.58,151.57,8.91164561]
[1751296929555,23.09011742,151.58,151.57,1.82472759]
[1751296929861,0.28432314,151.57,151.53,0.2]
[1751296930036,0.28432314,151.57,151.53,9.11164561]
[1751296930234,9.19596875,151.57,151.53,9.11164561]
[1751296930435,9.19596875,151.57,151.53,0.2]
[1751296931053,23.09316441,151.56,151.53,0.2]
[1751296931968,23.09316441,151.56,151.54,8.91164561]
[1751296932239,23.09316441,151.56,151.55,8.91164561]
[1751296932445,29.47316441,151.56,151.55,8.91164561]
[1751296934752,29.47316441,151.56,151.53,0.2]
[1751296935070,29.47316441,151.56,151.54,8.91164561]
[1751296935254,29.47316441,151.56,151.55,8.91164561]
[1751296935741,29.47316441,151.56,151.53,0.2]
[1751296940867,0.28432314,151.55,151.53,9.11164561]
[1751296941056,0.28432314,151.55,151.53,0.2]
[1751296942462,6.88324091,151.54,151.53,0.2]
[1751296942887,6.88324091,151.54,151.53,0.05155943]
[1751296943387,40.67543538,151.54,151.53,0.05155943]
[1751296944091,0.28432314,151.53,151.51,8.91164561]
[1751296944385,6.5997888,151.52,151.51,8.91164561]
[1751296944591,6.5997888,151.52,151.5,9.11164561]
[1751296945177,6.5997888,151.52,151.51,8.91164561]
[1751296945884,6.59848234,151.55,151.51,8.91164561]
[1751296946103,6.59848234,151.55,151.54,8.91164561]
[1751296946288,6.59821263,151.56,151.54,8.91164561]
[1751296946598,6.48,151.57,151.55,8.91164561]
[1751296946599,13.07779243,151.57,151.55,8.91164561]
[1751296946794,13.07779243,151.57,151.56,8.91164561]
[1751296947891,6.48,151.57,151.56,8.91164561]
[1751296949634,0.1,151.57,151.56,34.91164561]
[1751296949933,10.69593458,151.59,151.58,26.0]
[1751296950092,10.69593458,151.59,151.58,34.91164561]
[1751296951199,13.07549778,151.62,151.58,43.82329122]
[1751296951517,13.07549778,151.62,151.61,8.91164561]
[1751296951705,6.48,151.62,151.61,8.91164561]
[1751296952622,13.07543595,151.62,151.61,8.91164561]
[1751296955721,6.48,151.62,151.61,8.91164561]
[1751296955938,6.46,151.68,151.61,8.91164561]
[1751296956102,6.46,151.68,151.6,36.44364561]
[1751296956103,6.46,151.68,151.63,8.91164561]
[1751296956304,6.59385537,151.66,151.63,34.91164561]
[1751296956825,6.59343129,151.67,151.63,34.91164561]
[1751296957227,6.59343129,151.67,151.66,8.91164561]
[1751296958125,6.59343129,151.67,151.63,26.0]
[1751296958326,6.59343129,151.67,151.66,8.91164561]
[1751296961426,6.59343129,151.67,151.63,26.0]
[1751296961733,6.59343129,151.67,151.66,8.91164561]
[1751296961917,13.05301073,151.68,151.66,8.91164561]
[1751296962230,13.05301073,151.68,151.67,8.91164561]
[1751296962442,6.46,151.68,151.67,8.91164561]
[1751296963422,6.46,151.68,151.67,14.28934529]
[1751296964234,6.46,151.68,151.67,8.91164561]
[1751296964437,0.1,151.69,151.67,115.07294008]
[1751296964624,12.95096846,151.73,151.72,8.91164561]
[1751296964944,12.95096846,151.73,151.67,104.6]
[1751296965253,12.95096846,151.73,151.72,8.91164561]
[1751296965543,6.69013055,151.75,151.72,8.91164561]
[1751296965748,6.36,151.74,151.72,8.91164561]
[1751296965925,6.36,151.74,151.73,8.91164561]
[1751296966245,6.36,151.74,151.7,26.0]
[1751296966447,6.36,151.74,151.73,8.91164561]
[1751296967145,12.95022011,151.74,151.73,8.91164561]
[1751296968521,6.36,151.74,151.73,8.91164561]
[1751296968736,0.1,151.75,151.73,36.57484561]
[1751296968945,0.1,151.75,151.74,8.91164561]
[1751296969828,6.68988079,151.75,151.67,7.9695]
[1751296970035,6.68988079,151.75,151.74,8.91164561]
[1751296972847,6.68988079,151.75,151.69,26.0]
[1751296973047,6.68988079,151.75,151.74,8.91164561]
[1751296977153,0.1,151.75,151.74,8.91164561]
[1751296977751,0.1,151.75,151.74,5.30785845]
[1751296978970,6.68983406,151.75,151.74,5.30785845]
[1751296979468,0.1,151.75,151.74,5.30785845]
[1751296980567,6.68978583,151.75,151.74,5.30785845]
[1751296981470,0.1,151.75,151.74,5.30785845]
[1751296982368,6.68978583,151.75,151.74,5.30785845]
[1751296983591,0.1,151.75,151.74,5.30785845]
[1751296984375,63.6976,151.82,151.76,36.6157169]
[1751296984376,6.58718134,151.81,151.76,36.6157169]
[1751296984547,6.58718134,151.81,151.8,5.30785845]
[1751296984745,23.0551347,151.81,151.76,26.0]
[1751296984946,0.28432314,151.8,151.76,5.30785845]
[1751296985141,18.933972,151.8,151.74,5.30785845]
[1751296985361,5.59218159,151.79,151.75,5.30785845]
[1751296985567,0.28432314,151.77,151.74,5.30785845]
[1751296985766,0.28432314,151.75,151.72,5.30785845]
[1751296986647,6.59022011,151.74,151.69,26.0]
[1751296986868,6.59022011,151.74,151.69,104.6]
[1751296987060,6.34,151.75,151.73,5.30785845]
[1751296987259,6.34,151.75,151.74,5.30785845]
[1751296987505,6.34,151.77,151.74,5.30785845]
[1751296987791,6.34,151.77,151.69,104.6]
[1751296987792,6.34,151.77,151.76,5.30785845]
[1751296988686,6.5893516,151.76,151.73,26.0]
[1751296988884,6.5893516,151.76,151.75,5.30785845]
[1751296990584,41.99670261,151.76,151.68,78.6]
[1751296990789,0.28432314,151.75,151.71,5.30785845]
[1751296991013,0.28432314,151.75,151.7,5.30785845]
[1751296991014,33.45218159,151.75,151.7,5.30785845]
[1751296991216,33.45218159,151.75,151.69,26.0]
[1751296991502,33.45218159,151.75,151.71,5.30785845]
[1751296991709,28.14432314,151.75,151.71,5.30785845]
[1751296992104,28.14432314,151.75,151.72,5.30785845]
[1751296992609,6.59022011,151.74,151.71,5.30785845]
[1751296992825,0.28432314,151.73,151.71,5.30785845]
[1751296993121,0.28432314,151.73,151.7,5.30785845]
[1751296993616,0.28432314,151.73,151.69,5.30785845]
[1751296994286,5.59218159,151.73,151.66,26.0]
[1751296994484,5.59218159,151.73,151.68,5.30785845]
[1751296994687,6.59195781,151.7,151.67,5.30785845]
[1751296994904,6.34,151.69,151.67,5.30785845]
[1751296995787,6.592827,151.68,151.67,5.30785845]
[1751296996006,6.34,151.69,151.67,5.30785845]
[1751296996214,6.34,151.69,151.68,5.30785845]
[1751296998708,12.93239237,151.69,151.68,5.30785845]
[1751297000793,12.93239237,151.69,151.67,5.30785845]
[1751297001407,12.93239237,151.69,151.64,26.0]
[1751297001754,12.93239237,151.69,151.67,5.30785845]
[1751297002020,12.93239237,151.69,151.68,5.30785845]
[1751297002706,6.34,151.73,151.66,26.0]
[1751297002914,0.28432314,151.72,151.69,5.30785845]
[1751297003919,0.28432314,151.7,151.63,4.75985138]
[1751297004116,0.28432314,151.7,151.67,5.30785845]
[1751297004304,6.5915233,151.71,151.69,5.30785845]
[1751297004715,6.5915233,151.71,151.69,1.60034549]
[1751297005121,6.87584644,151.71,151.7,5.30785845]
[1751297005512,6.87584644,151.71,151.69,5.30785845]
[1751297005715,6.59104376,151.73,151.7,5.30785845]
[1751297005918,12.93104376,151.73,151.72,5.30785845]
[1751297007106,12.93104376,151.73,151.64,26.0]
[1751297007107,0.28432314,151.71,151.64,26.0]
[1751297007401,28.14432314,151.71,151.68,5.30785845]
[1751297007915,0.14216157,151.71,151.69,5.30785845]
[1751297008133,0.14216157,151.71,151.7,5.30785845]
[1751297008134,6.34,151.71,151.7,5.30785845]
[1751297009125,12.9315233,151.71,151.7,5.30785845]
[1751297009329,12.9315233,151.71,151.65,26.0]
[1751297009622,12.9315233,151.71,151.7,5.30785845]
[1751297009828,6.5915233,151.71,151.7,5.30785845]
[1751297010017,12.93107243,151.73,151.7,5.30785845]
[1751297010223,0.1,151.76,151.72,5.30785845]
[1751297010406,0.1,151.76,151.75,5.30785845]
[1751297010606,30.1,151.76,151.75,5.30785845]
[1751297011009,36.68946218,151.76,151.75,5.30785845]
[1751297011215,6.68946218,151.76,151.75,5.30785845]
[1751297013121,6.68946218,151.76,151.73,26.0]
[1751297013335,0.1,151.76,151.75,5.30785845]
[1751297013629,6.6893516,151.76,151.75,5.30785845]
[1751297015929,13.0093516,151.76,151.75,5.30785845]
[1751297018338,13.0093516,151.76,151.71,78.6]
[1751297018525,13.0093516,151.76,151.72,5.30785845]
[1751297018526,0.28432314,151.75,151.72,5.30785845]
[1751297018729,18.933972,151.75,151.71,5.30785845]
[1751297019040,18.933972,151.75,151.72,5.30785845]
[1751297020530,6.59022011,151.74,151.68,6.97265845]
[1751297020743,6.59022011,151.74,151.73,5.30785845]
[1751297022255,6.59022011,151.74,151.71,5.30785845]
[1751297022554,6.58978583,151.75,151.73,5.30785845]
[1751297022752,6.58978583,151.75,151.71,5.30785845]
[1751297022753,0.28432314,151.74,151.71,5.30785845]
[1751297024526,6.59065445,151.73,151.71,5.30785845]
[1751297024948,6.59065445,151.73,151.72,5.30785845]
[1751297025263,0.1,151.76,151.72,5.30785845]
[1751297025561,6.32,151.75,151.68,85.57265845]
[1751297025730,6.32,151.75,151.68,6.97265845]
[1751297026261,18.933972,151.74,151.64,78.6]
[1751297026422,0.28432314,151.74,151.65,6.6079]
[1751297026628,0.28432314,151.74,151.66,26.0]
[1751297026629,6.59065445,151.73,151.66,26.0]
[1751297026828,6.59065445,151.73,151.71,5.30785845]
[1751297027338,6.59065445,151.73,151.72,5.30785845]
[1751297028543,6.59017731,151.75,151.72,5.30785845]
[1751297028967,6.59017731,151.75,151.74,5.30785845]
[1751297029360,6.59017731,151.75,151.74,1.74965657]
[1751297030471,0.1,151.76,151.74,1.74965657]
[1751297030645,0.1,151.76,151.71,26.0]
[1751297030646,6.68951156,151.76,151.71,26.0]
[1751297030849,6.68951156,151.76,151.75,5.30785845]
[1751297032436,0.1,151.76,151.75,5.30785845]
[1751297033370,0.1,151.76,151.75,10.6157169]
[1751297033660,0.1,151.8,151.75,10.6157169]
[1751297033857,0.1,151.8,151.79,5.30785845]
[1751297035846,0.1,151.8,151.79,8.84089087]
[1751297036644,6.68761528,151.8,151.79,8.84089087]
[1751297036845,0.1,151.8,151.79,8.84089087]
[1751297037163,6.68761528,151.8,151.79,8.84089087]
[1751297039470,6.68761528,151.8,151.77,26.0]
[1751297039645,6.68761528,151.8,151.79,8.84089087]
[1751297042472,6.68761528,151.8,151.77,26.0]
[1751297042667,6.68761528,151.8,151.78,8.84089087]
[1751297043170,6.68761528,151.8,151.77,8.84089087]
[1751297043366,6.68761528,151.8,151.78,8.84089087]
[1751297043777,6.68761528,151.8,151.79,8.84089087]
[1751297044372,6.68761528,151.8,151.78,8.84089087]
[1751297045173,6.68761528,151.8,151.79,8.84089087]
[1751297046153,6.68761528,151.8,151.75,26.0]
[1751297046357,6.68761528,151.8,151.78,8.84089087]
[1751297046568,6.68761528,151.8,151.79,8.84089087]
[1751297047774,6.68761528,151.8,151.75,26.0]
[1751297047956,6.68761528,151.8,151.79,8.84089087]
[1751297048159,6.68761528,151.8,151.75,104.6]
[1751297048362,6.68761528,151.8,151.79,8.84089087]
[1751297054751,0.1,151.8,151.79,8.84089087]
[1751297055362,0.1,151.8,151.79,14.0653882]
[1751297055774,0.1,151.8,151.79,10.52905417]
[1751297056972,0.1,151.8,151.78,32.2784]
[1751297057174,0.1,151.8,151.79,5.30455684]
[1751297059681,0.1,151.8,151.78,32.2784]
[1751297059866,0.1,151.8,151.79,5.30455684]
[1751297061985,0.1,151.8,151.75,78.8]
[1751297061986,6.687806,151.8,151.75,78.8]
[1751297062188,6.687806,151.8,151.75,0.2]
[1751297062366,6.687806,151.8,151.78,5.30455684]
[1751297063987,6.687806,151.8,151.77,5.30455684]
[1751297064892,28.46140104,151.8,151.76,5.30455684]
[1751297065996,5.58887998,151.79,151.75,0.2]
[1751297066177,0.28432314,151.79,151.75,0.2]
[1751297066375,0.28432314,151.79,151.75,5.50455684]
[1751297066678,5.58887998,151.79,151.75,5.50455684]
[1751297066993,0.28432314,151.79,151.76,5.30455684]
[1751297067788,6.58848333,151.78,151.76,5.30455684]
[1751297069104,0.1,151.8,151.77,5.30455684]
[1751297069402,6.68763355,151.8,151.76,5.30455684]
[1751297069904,6.68763355,151.8,151.79,5.30455684]
[1751297071297,6.68763355,151.8,151.78,5.30455684]
[1751297071500,6.68763355,151.8,151.77,5.30455684]
[1751297071690,6.68763355,151.8,151.75,104.8]
[1751297071999,6.68763355,151.8,151.78,5.30455684]
[1751297072602,6.68763355,151.8,151.75,0.2]
[1751297072783,6.68763355,151.8,151.78,5.30455684]
[1751297072980,6.68763355,151.8,151.75,0.2]
[1751297072981,6.68763355,151.8,151.77,5.30455684]
[1751297074081,6.68763355,151.8,151.76,5.30455684]
[1751297074982,6.68763355,151.8,151.77,5.30455684]
[1751297075510,0.28432314,151.79,151.76,5.30455684]
[1751297076005,0.28432314,151.79,151.75,0.2]
[1751297076006,0.28432314,151.79,151.75,5.50455684]
[1751297076209,6.28,151.78,151.75,5.50455684]
[1751297077204,6.58891744,151.77,151.75,5.50455684]
[1751297077612,6.58891744,151.77,151.75,0.2]
[1751297077808,6.58891744,151.77,151.75,5.50455684]
[1751297078689,6.58891744,151.77,151.76,5.30455684]
[1751297079009,6.58891744,151.77,151.75,5.50455684]
[1751297079383,6.58891744,151.77,151.75,0.2]
[1751297083887,6.58891744,151.77,151.74,5.30455684]
[1751297085010,6.58891744,151.77,151.73,5.30455684]
[1751297085397,24.23852884,151.76,151.71,5.50455684]
[1751297086109,23.06121104,151.77,151.73,5.30455684]
[1751297086314,23.06121104,151.77,151.74,5.30455684]
[1751297087507,23.06121104,151.77,151.75,5.30455684]
[1751297087714,6.58891744,151.77,151.75,5.30455684]
[1751297089012,6.58848333,151.78,151.75,5.30455684]
[1751297089214,6.28,151.77,151.75,5.30455684]
[1751297089598,6.28,151.77,151.71,0.2]
[1751297089796,6.28,151.77,151.75,5.30455684]
[1751297090192,6.58848333,151.78,151.74,5.30455684]
[1751297090503,6.56432314,151.77,151.73,5.30455684]
[1751297090819,6.56432314,151.77,151.74,5.30455684]
[1751297090820,6.28,151.77,151.74,5.30455684]
[1751297091013,6.5893516,151.76,151.74,5.30455684]
[1751297093515,6.58804927,151.79,151.74,26.0]
[1751297093721,6.58804927,151.79,151.78,5.30455684]
[1751297093926,36.58804927,151.79,151.77,5.30455684]
[1751297094103,36.58804927,151.79,151.74,26.0]
[1751297094303,6.58804927,151.79,151.77,5.30455684]
[1751297095014,6.58804927,151.79,151.76,5.30455684]
[1751297095525,6.58804927,151.79,151.74,26.0]
[1751297095725,6.58804927,151.79,151.75,5.30455684]
[1751297096321,6.58804927,151.79,151.77,5.30455684]
[1751297096830,6.58804927,151.79,151.74,26.0]
[1751297097026,12.86804927,151.79,151.77,5.30455684]
[1751297097723,6.58804927,151.79,151.77,5.30455684]
[1751297097924,12.86804927,151.79,151.77,5.30455684]
[1751297098833,6.58804927,151.79,151.77,5.30455684]
[1751297099126,12.86804927,151.79,151.77,5.30455684]
[1751297099346,12.86804927,151.79,151.74,26.0]
[1751297099513,6.58804927,151.79,151.77,5.30455684]
[1751297099699,6.58804927,151.79,151.75,5.30455684]
[1751297099700,12.86804927,151.79,151.75,5.30455684]
[1751297100310,12.86804927,151.79,151.74,5.30455684]
[1751297100311,18.933972,151.78,151.74,5.30455684]
[1751297100616,18.933972,151.78,151.74,5.50455684]
[1751297100823,29.33817246,151.79,151.75,5.30455684]
[1751297101600,29.33817246,151.79,151.74,0.2]
[1751297101601,29.43817246,151.79,151.76,5.30455684]
[1751297103830,6.68804927,151.79,151.78,5.30455684]
[1751297104125,0.1,151.79,151.78,5.30455684]
[1751297109543,6.68822966,151.79,151.78,5.30455684]
[1751297113433,6.68822966,151.79,151.75,26.0]
[1751297113644,6.68822966,151.79,151.78,5.30455684]
[1751297114006,6.68822966,151.79,151.75,26.0]
[1751297114211,6.68822966,151.79,151.77,5.30455684]
[1751297115632,6.68822966,151.79,151.76,5.30455684]
[1751297116636,6.68822966,151.79,151.75,5.30455684]
[1751297117247,6.68822966,151.79,151.74,0.2]
[1751297117248,6.68822966,151.79,151.76,5.30455684]
[1751297118015,6.68822966,151.79,151.77,5.30455684]
[1751297118456,12.96822966,151.79,151.75,0.2]
[1751297118621,12.96822966,151.79,151.76,5.30455684]
[1751297119231,12.96822966,151.79,151.75,5.50455684]
[1751297119829,29.43835285,151.79,151.75,5.50455684]
[1751297120652,34.74290969,151.79,151.75,5.50455684]
[1751297121020,29.43835285,151.79,151.75,5.50455684]
[1751297121225,0.28432314,151.78,151.75,0.2]
[1751297121418,5.30455684,151.77,151.75,0.2]
[1751297121639,5.58887998,151.78,151.75,0.2]
[1751297121877,0.28432314,151.78,151.75,0.2]
[1751297123121,6.58891744,151.77,151.75,0.2]
[1751297127460,6.58891744,151.77,151.75,5.50455684]
[1751297128559,6.58848333,151.78,151.75,5.50455684]
[1751297128853,6.58848333,151.78,151.75,0.2]
[1751297129052,6.58848333,151.78,151.77,5.30455684]
[1751297130262,6.58848333,151.78,151.75,0.2]
[1751297130434,6.58848333,151.78,151.76,5.30455684]
[1751297130635,6.58848333,151.78,151.77,5.30455684]
[1751297131259,0.1,151.79,151.77,5.30455684]
[1751297131444,0.1,151.79,151.78,5.30455684]
[1751297132836,0.1,151.79,151.78,6.88205684]
[1751297133545,0.1,151.79,151.78,27.5775]
[1751297133863,0.1,151.79,151.78,32.88205684]
[1751297136158,0.1,151.79,151.78,33.08205684]
[1751297139438,6.68804927,151.79,151.78,33.08205684]
[1751297139637,6.68804927,151.79,151.78,31.50455684]
[1751297139638,0.1,151.79,151.78,31.50455684]
[1751297140457,6.68804927,151.79,151.78,31.50455684]
[1751297140637,6.68804927,151.79,151.78,0.2]
[1751297142761,11.99260611,151.79,151.78,0.2]
[1751297143368,6.68804927,151.79,151.78,0.2]
[1751297144453,12.27692925,151.79,151.78,0.2]
[1751297144852,12.27692925,151.79,151.78,0.06822045]
[1751297145058,30.92657811,151.79,151.78,0.06822045]
[1751297145374,0.28432314,151.78,151.75,0.2]
[1751297145551,6.26,151.77,151.75,0.2]
[1751297146072,6.5893516,151.76,151.75,0.2]
[1751297148073,62.13243728,151.76,151.75,0.2]
[1751297148254,62.13243728,151.76,151.74,0.2]
[1751297148255,44.933972,151.75,151.74,0.2]
[1751297148568,50.23852884,151.75,151.74,0.2]
[1751297149153,80.23852884,151.75,151.74,0.2]
[1751297149781,86.82831467,151.75,151.74,0.2]
[1751297150481,114.56831467,151.75,151.74,0.2]
[1751297151771,114.56831467,151.75,151.74,0.2]
[1751297154877,114.56831467,151.75,151.74,0.07413566]
[1751297155464,114.56831467,151.75,151.74,0.00059903]
[1751297158460,81.52375783,151.75,151.74,0.00059903]
[1751297158763,88.56831467,151.75,151.74,0.00059903]
[1751297159277,41.89434267,151.75,151.74,0.00059903]
[1751297159574,42.84978583,151.75,151.74,0.00059903]
[1751297160357,6.58978583,151.75,151.74,0.00059903]
[1751297160566,12.84978583,151.75,151.74,0.00059903]
[1751297160759,6.58978583,151.75,151.74,0.00059903]
[1751297160965,12.84978583,151.75,151.74,0.00059903]
[1751297162196,18.15434267,151.75,151.74,0.00059903]
[1751297162959,12.84978583,151.75,151.74,0.00059903]
[1751297164362,6.58978583,151.75,151.74,0.00059903]
[1751297164774,12.84978583,151.75,151.74,0.00059903]
[1751297164969,6.58978583,151.75,151.74,0.00059903]
[1751297165172,12.84978583,151.75,151.74,0.00059903]
[1751297166061,18.43866581,151.75,151.74,0.00059903]
[1751297166459,37.08831467,151.75,151.74,0.00059903]
[1751297166915,75.29801467,151.75,151.74,0.00059903]
[1751297167164,50.23852884,151.72,151.71,0.2]
[1751297167374,77.97852884,151.72,151.71,0.2]
[1751297167570,84.56961768,151.72,151.71,0.2]
[1751297168065,165.833972,151.71,151.69,0.2]
[1751297168264,51.97852884,151.7,151.69,0.2]
[1751297168468,77.97852884,151.7,151.69,0.2]
[1751297172699,120.83048665,151.7,151.69,0.2]
[1751297172998,90.83048665,151.7,151.69,0.2]
[1751297174175,6.59195781,151.7,151.69,0.2]
[1751297174371,12.85195781,151.7,151.69,5.50455684]
[1751297174781,25.23986897,151.74,151.69,5.50455684]
[1751297175104,6.26,151.72,151.69,0.2]
[1751297175315,6.59022011,151.74,151.69,0.2]
[1751297176487,6.59022011,151.74,151.72,5.30455684]
[1751297177392,23.06577039,151.74,151.7,5.30455684]
[1751297177692,0.28432314,151.73,151.69,5.50455684]
[1751297177892,0.28432314,151.73,151.7,5.30455684]
[1751297178585,6.59108884,151.72,151.7,5.30455684]
[1751297179574,6.59108884,151.72,151.69,5.50455684]
[1751297179994,6.59108884,151.72,151.7,5.30455684]
[1751297180510,6.59108884,151.72,151.71,5.30455684]
[1751297181698,6.59022011,151.74,151.71,5.30455684]
[1751297181926,6.59022011,151.74,151.69,6.6756]
[1751297182086,6.59022011,151.74,151.73,5.30455684]
[1751297186309,6.59022011,151.74,151.69,6.6756]
[1751297186487,6.59022011,151.74,151.72,5.30455684]
[1751297186995,6.59022011,151.74,151.73,5.30455684]
[1751297189308,0.1,151.75,151.73,6.96065684]
[1751297189486,0.1,151.75,151.74,5.30455684]
[1751297194094,6.68978583,151.75,151.73,1.6561]
[1751297194301,6.68978583,151.75,151.74,5.30455684]
[1751297200225,6.68978583,151.75,151.72,5.30455684]
[1751297201909,6.68978583,151.75,151.73,5.30455684]
[1751297202696,6.68978583,151.75,151.74,5.30455684]
[1751297205422,6.68978583,151.75,151.72,26.0]
[1751297205624,6.68978583,151.75,151.74,5.30455684]
[1751297209605,6.68978583,151.75,151.71,26.0]
[1751297209933,6.68978583,151.75,151.74,5.30455684]
[1751297217928,0.1,151.75,151.74,5.30455684]
[1751297220240,6.68978583,151.75,151.74,5.30455684]
[1751297220431,6.68978583,151.75,151.71,26.0]
[1751297220432,6.68978583,151.75,151.73,5.30455684]
[1751297221250,6.68978583,151.75,151.74,5.30455684]
[1751297223342,6.68978583,151.75,151.73,5.30455684]
[1751297225146,6.68978583,151.75,151.74,5.30455684]
[1751297225450,6.68978583,151.75,151.72,26.0]
[1751297225629,6.68978583,151.75,151.74,5.30455684]
[1751297227133,0.1,151.75,151.74,5.30455684]
[1751297230943,6.68978583,151.75,151.72,26.0]
[1751297231128,6.68978583,151.75,151.73,5.30455684]
[1751297231331,6.68978583,151.75,151.72,5.30455684]
[1751297231638,6.68978583,151.75,151.69,86.9225]
[1751297231639,6.68978583,151.75,151.73,5.30455684]
[1751297233357,6.68978583,151.75,151.72,5.30455684]
[1751297235456,6.68978583,151.75,151.73,5.30455684]
[1751297235638,6.68978583,151.75,151.72,5.30455684]
[1751297235842,28.46880724,151.75,151.7,5.30455684]
[1751297236243,5.30455684,151.73,151.69,0.2]
[1751297237545,6.59108884,151.72,151.69,0.2]
[1751297237763,6.22,151.71,151.69,0.2]
[1751297238344,5.30455684,151.7,151.69,0.2]
[1751297238654,5.58887998,151.7,151.69,0.2]
[1751297238859,24.23852884,151.7,151.69,0.2]
[1751297239067,24.23852884,151.7,151.69,0.07162665]
[1751297239241,30.83048665,151.7,151.69,0.07162665]
[1751297241148,6.87628095,151.7,151.69,0.07162665]
[1751297241472,6.87628095,151.7,151.68,0.2]
[1751297242651,12.18083779,151.7,151.68,0.2]
[1751297244150,6.87628095,151.7,151.68,0.2]
[1751297245463,6.22,151.69,151.68,0.2]
[1751297246570,12.81239237,151.69,151.68,0.2]
[1751297251194,31.46204123,151.69,151.68,0.2]
[1751297251372,64.69092121,151.69,151.68,0.2]
[1751297255083,64.40659807,151.69,151.68,0.2]
[1751297255974,36.76659807,151.69,151.68,0.2]
[1751297256180,64.40659807,151.69,151.68,0.2]
[1751297261119,64.69092121,151.69,151.68,0.2]
[1751297263497,90.69092121,151.69,151.68,0.2]
[1751297263805,69.99547805,151.69,151.68,0.06785286]
[1751297264180,64.69092121,151.69,151.68,0.06785286]
[1751297264689,94.69092121,151.69,151.68,0.06785286]
[1751297265415,105.01088862,151.69,151.68,0.06785286]
[1751297266809,94.69092121,151.69,151.68,0.06785286]
[1751297268603,105.18112061,151.69,151.68,0.06785286]
[1751297269996,94.69092121,151.69,151.68,0.06785286]
[1751297272896,99.99547805,151.69,151.68,0.06785286]
[1751297273307,94.69092121,151.69,151.68,0.06785286]
[1751297274100,99.99547805,151.69,151.68,0.06785286]
[1751297276493,110.1487467,151.69,151.68,0.06785286]
[1751297277317,18.933972,151.68,151.67,0.2]
[1751297277500,44.933972,151.66,151.65,0.2]
[1751297277817,77.83852884,151.66,151.65,0.2]
[1751297278324,18.933972,151.65,151.64,0.2]
[1751297278518,54.23852884,151.65,151.64,0.2]
[1751297279407,60.83266006,151.65,151.64,0.2]
[1751297279817,86.54833692,151.65,151.64,0.2]
[1751297280005,114.14833692,151.65,151.64,0.2]
[1751297280911,108.84378008,151.65,151.64,0.2]
[1751297281098,114.14833692,151.65,151.64,0.2]
[1751297281705,114.43266006,151.65,151.64,0.2]
[1751297282429,88.43266006,151.65,151.64,0.2]
[1751297288108,66.70833692,151.65,151.64,0.2]
[1751297288308,61.40378008,151.65,151.64,0.2]
[1751297288503,89.00378008,151.65,151.64,0.2]
[1751297289315,36.59413122,151.65,151.64,0.2]
[1751297289514,42.75413122,151.65,151.64,0.2]
[1751297289722,12.75413122,151.65,151.64,5.50455684]
[1751297291005,12.75413122,151.65,151.64,0.2]
[1751297291337,12.75413122,151.65,151.64,5.50455684]
[1751297292008,12.75413122,151.65,151.64,0.2]
[1751297292834,12.75413122,151.65,151.64,5.50455684]
[1751297294218,12.75413122,151.65,151.64,0.2]
[1751297296433,12.85413122,151.65,151.64,0.2]
[1751297296639,64.38833692,151.65,151.64,0.2]
[1751297298031,59.08378008,151.65,151.64,0.2]
[1751297298217,12.85413122,151.65,151.64,5.50455684]
[1751297299125,6.69413122,151.65,151.64,5.50455684]
[1751297302712,6.69413122,151.65,151.64,0.2]
[1751297303051,30.64833692,151.65,151.64,0.2]